Cogmind - Beta 13 @@@ ROGUE MODE // 2024.05.02 @ 21:48:05 Player: double j Result: Destroyed by X-77 Beamer with Gatling Laser Performance ------------- Evolutions (5) 2500 Regions Visited (6) 1200 Robots Destroyed (71) 355 Value Destroyed (1904) 1904 Prototype IDs (6) 120 Alien Tech Used (0) 0 Bonus (0) 0 TOTAL SCORE: 6079 Bonus ------- None Cogmind --------- Core Integrity 0/1000 Matter 300/300 Energy 100/100 System Corruption 0% Temperature Cool (12) Movement Core (700) Ox13 Location -5/Factory Parts ------- > --- POWER (2) -------- (None) > --- PROPULSION (4) --- (None) > --- UTILITY (8) ------ High-capacity Storage Unit Enhanced Optical Array Terrain Scan Processor > --- WEAPON (3) ------- (None) > --- INVENTORY (20) --- Improved Deuterium Engine Fusion Compressor Power Amplifier Structural Scanner Advanced Sensor Array Improved Signal Interpreter Improved Terrain Scanner Improved Transmission Jammer ECM Suite Core Shielding Propulsion Shielding Improved Hacking Suite Improved System Restoration Module Tractor Beam Recalibrator Phase Cannon Magnetic Acceleration Cannon Peak State ------------ > --- POWER ------------ Micro Nuclear Core Micro Fission Core > --- PROPULSION ------- Wheel Wheel Compact Wheel Subdweller Monowheel > --- UTILITY ---------- Improved Cryofiber Web High-capacity Storage Unit Enhanced Optical Array Advanced Sensor Array Advanced Signal Interpreter Improved Terrain Scanner Terrain Scan Processor Improved Medium Armor Plating > --- WEAPON ----------- Tesla Rifle Phase Cannon KE Penetrator > --- INVENTORY -------- Improved Deuterium Engine Fusion Compressor Wheel Power Amplifier Structural Scanner Advanced Sensor Array Improved Signal Interpreter Improved Terrain Scanner Improved Transmission Jammer ECM Suite Core Shielding Propulsion Shielding Hardened Medium Armor Plating Improved Hacking Suite Improved System Restoration Module Tractor Beam Recalibrator Tesla Rifle Phase Cannon Magnetic Acceleration Cannon [Rating: 69] Favorites ----------- Power Micro Nuclear Core Engine Light Ion Engine Power Core Micro Nuclear Core Propulsion Wheel Wheel Wheel Hover Unit Cooled Airjet Utility High-capacity Storage Unit Device Improved Terrain Scanner Storage High-capacity Storage Unit Processor Terrain Scan Processor Protection Improved Medium Armor Plating Weapon EM Pulse Cannon Energy Gun Gatling Laser Energy Cannon EM Pulse Cannon Ballistic Gun Gauss Rifle Ballistic Cannon Magnetic Acceleration Cannon Special Weapon Mining Laser Build | -11 -10 -10 -8 -7 -6 -5 ------- Run | Yrd Mat Sub Mat Fac Fac Fac Slots Evolved 10 | . . . 4 2 2 2 Power 1 | . . . . . . 1 Propulsion 2 | . . . . 1 . 1 Utility 6 | . . . 3 1 2 . Weapon 1 | . . . 1 . . . Parts Attached 119 | 8 7 12 43 17 18 14 Power 16 | 1 1 3 4 2 1 4 Engine 7 | 1 1 2 3 . . . Core 9 | . . 1 1 2 1 4 Reactor . | . . . . . . . Propulsion 44 | 3 4 3 17 9 4 4 Treads . | . . . . . . . Leg . | . . . . . . . Wheel 43 | 3 4 3 17 8 4 4 Hover 1 | . . . . 1 . . Flight . | . . . . . . . Utility 31 | 2 1 2 8 4 11 3 Device 16 | 1 . . 5 4 5 1 Storage 2 | 1 1 . . . . . Processor 5 | . . . 3 . 2 . Hackware . | . . . . . . . Protection 8 | . . 2 . . 4 2 Artifact . | . . . . . . . Weapon 28 | 2 1 4 14 2 2 3 Energy Gun 10 | 1 1 1 4 1 . 2 Energy Cannon 4 | . . . 2 1 1 . Ballistic Gun 8 | 1 . 2 4 . . 1 Ballistic Cannon 5 | . . 1 3 . 1 . Launcher . | . . . . . . . Special Weapon 1 | . . . 1 . . . Impact Weapon . | . . . . . . . Slashing Weapon . | . . . . . . . Piercing Weapon . | . . . . . . . Special Melee Weapon . | . . . . . . . Unidentified Prototypes 3 | . . . 2 1 . . Parts Lost 30 | . . 4 5 2 2 17 Power 4 | . . 1 1 . . 2 Propulsion 8 | . . . 1 1 1 5 Utility 9 | . . 2 . . 1 6 Weapon 9 | . . 1 3 1 . 4 Highest Loss Streak 17 | . . 2 2 1 2 17 To Critical Strikes 1 | . . . . . . 1 Average Slot Usage (%) 98 | . 98 98 99 99 97 98 Engine 4 | . 13 11 7 2 . . Core 4 | . . 2 1 4 6 10 Wheel 21 | . 27 28 17 19 20 22 Device 18 | . 14 10 15 22 23 17 Storage 8 | . 14 14 9 7 6 5 Processor 14 | . . . 17 15 17 16 Protection 2 | . . 2 2 . 2 4 Energy Gun 8 | . 14 12 11 9 3 4 Energy Cannon 3 | . . . 1 4 8 5 Ballistic Gun 5 | . 14 11 4 7 . 4 Ballistic Cannon 4 | . . 3 8 . 5 . Naked Turns . | . . . . . . . Heaviest Build 84 | 12 48 70 64 63 84 83 Greatest Support 56 | 26 32 40 40 50 40 56 Greatest Overweight (x) 24 | . 1 3 5 5 3 24 Average Overweight (x) 1 | . . 1 1 2 1 1 Largest Inventory Capacity 20 | 8 20 20 20 20 20 20 Average Capacity 19 | 7 18 20 20 20 20 20 Most Carried 20 | 8 20 20 20 20 20 20 Average Carried 18 | 4 13 19 18 18 19 19 Final Capacity 20 | 8 20 20 20 20 20 20 Final Carried 20 | 7 20 16 20 20 20 17 Class Distribution -------------------- 78% | Scavenger-Skirmisher 14% | Mutant 4% | Scavenger-Mutant Dominant Class ---------------- Mutant | -10/Materials Scavenger-Mutant | -10/Subcaves Scavenger-Skirmisher | -8/Materials Scavenger-Skirmisher | -7/Factory Scavenger-Skirmisher | -6/Factory Scavenger-Skirmisher | -5/Factory Resources | -11 -10 -10 -8 -7 -6 -5 ----------- Run | Yrd Mat Sub Mat Fac Fac Fac Matter Collected 2112 | 288 152 87 942 118 303 222 Remotely . | . . . . . . . Salvage Created 2791 | 96 414 . 1348 149 477 307 Parts 171 | 10 33 . 72 10 23 23 Haulers Intercepted 2 | . 1 . 1 . . . Recyclers Shooed 8 | . 1 . 2 . 3 2 Parts Field Recycled . | . . . . . . . Retrieved Matter . | . . . . . . . Parts Self-Destructed 5 | . . 5 . . . . Prevented . | . . . . . . . Kills | -11 -10 -10 -8 -7 -6 -5 ------- Run | Yrd Mat Sub Mat Fac Fac Fac Combat Hostiles Destroyed 34 | . 4 . 22 3 3 2 Guns 20 | . 4 . 12 3 . 1 Cannons 14 | . . . 10 . 3 1 Classes Destroyed 14 | 2 5 . 5 1 1 . Worker 3 | . . . 2 . . 1 Builder 10 | . 2 . 5 1 1 1 Tunneler 6 | 2 . . 4 . . . Hauler 2 | . 1 . 1 . . . Recycler 8 | 1 1 . 3 . 2 1 Mechanic 1 | . 1 . . . . . Operator 2 | . . . . . 1 1 Watcher 5 | . 2 . 1 . 2 . Swarmer 4 | . . . 4 . . . Grunt 19 | . 4 . 13 2 . . Sentry 4 | . . . 3 . 1 . Specialist 1 | . . . 1 . . . Hunter 1 | . . . 1 . . . Programmer 5 | . . . . 1 2 2 Best Kill Streak 6 | 2 4 . 6 3 1 3 Combat Bots Only 6 | . 2 . 6 2 1 2 Max Kills in Single Turn 2 | 1 1 . 2 2 1 1 Gunslinging . | . . . . . . . Exploded . | . . . . . . . Melee . | . . . . . . . Uniques/NPCs Destroyed . | . . . . . . . Combat | -11 -10 -10 -8 -7 -6 -5 -------- Run | Yrd Mat Sub Mat Fac Fac Fac Hostile Shots Fired 447 | . 15 50 105 10 58 209 Missed 139 | . 6 16 29 1 18 69 Damage Taken 4855 | . 126 707 1041 217 307 2457 Core 1394 | . 27 146 179 . 31 1011 Absorbed by Shields . | . . . . . . . Redirected to Shielding 19 | . . 6 13 . . . Regen/Repaired (Parts) 126 | . 66 . 60 . . . Core Remaining (%) 78 | 100 . 30 67 100 96 . Volleys Fired 142 | 6 27 4 63 6 19 17 Largest 3 | 2 2 2 3 3 3 3 Hottest 203 | 60 70 90 201 160 201 203 Shots Fired 380 | 12 54 8 185 17 53 51 Gun 245 | 12 54 8 117 12 12 30 Cannon 131 | . . . 64 5 41 21 Launcher . | . . . . . . . Special 4 | . . . 4 . . . Kinetic 169 | 6 27 4 90 6 19 17 Thermal 150 | 6 27 4 72 6 18 17 Explosive . | . . . . . . . Electromagnetic 61 | . . . 23 5 16 17 Robot Hit Streak 17 | 5 7 3 17 5 14 12 Robot Miss Streak 8 | 2 2 4 8 4 2 3 Penetration Max . | . . . . . . . Secondary Targets . | . . . . . . . Shots Hit Robots 225 | 7 34 3 109 9 36 27 Core Hits 139 | 4 22 . 82 7 14 10 Critical Kills 1 | . . . 1 . . . Critical Parts Destroyed 3 | 1 . . 2 . . . Critical Strikes 12 | 1 2 . 6 . 3 . Burn 3 | . 2 . 1 . . . Destroy 4 | 1 . . 3 . . . Blast 4 | . . . 2 . 2 . Corrupt 1 | . . . . . 1 . Melee Attacks . | . . . . . . . Impact . | . . . . . . . Slashing . | . . . . . . . Piercing . | . . . . . . . Sneak Attacks . | . . . . . . . Combat Hostiles . | . . . . . . . Follow-up Attacks . | . . . . . . . Damage Inflicted 4959 | 89 431 66 2424 282 966 701 Guns 2778 | 89 431 66 1525 134 158 375 Cannons 1980 | . . . 808 38 808 326 Explosions 149 | . . . 39 110 . . Melee . | . . . . . . . Ramming 28 | . . . 28 . . . Kinetic 1841 | 33 199 46 943 46 413 161 Thermal 2269 | 56 232 20 1161 198 308 294 Explosive . | . . . . . . . Electromagnetic 821 | . . . 292 38 245 246 Impact . | . . . . . . . Slashing . | . . . . . . . Piercing . | . . . . . . . Highest Corruption 2 | . . . 2 2 . . Average Corruption 1 | . . . 1 1 . . Corruption Purged . | . . . . . . . Corruption Blocked 12 | . . . . . . 12 Effects 30 | . . . 27 3 . . Message Errors 3 | . . . 2 1 . . Matter Fused 8 | . . . 7 1 . . Heat Flow Errors 3 | . . . 3 . . . Energy Discharges 6 | . . . 5 1 . . Parts Rejected 1 | . . . 1 . . . Data Loss (minor) 5 | . . . 5 . . . Data Loss (major) 1 | . . . 1 . . . Misfires 1 | . . . 1 . . . Alerts 2 | . . . 2 . . . Overload Shots . | . . . . . . . Overflow Damage 56 | . . . 3 . 27 26 Projectiles 56 | . . . 3 . 27 26 Explosions . | . . . . . . . Melee . | . . . . . . . Knockbacks 17 | . . . 16 . 1 . Impact . | . . . . . . . Kinetic 16 | . . . 15 . 1 . Secondary 1 | . . . 1 . . . Self-Inflicted Damage 14 | . . . 14 . . . Shots . | . . . . . . . Rammed 2 | . . . 2 . . . Targets Rammed 2 | . . . 2 . . . Kicked . | . . . . . . . Crushed . | . . . . . . . Highest Temperature 599 | . 153 . 599 184 216 190 Average Temperature 89 | . 48 . 105 111 91 71 Received Heat Transfer 1296 | . 90 189 513 18 72 414 Effects 12 | . . . 12 . . . Shutdowns 3 | . . . 3 . . . Energy Bleed 3 | . . . 3 . . . Interference 3 | . . . 3 . . . Short Circuit 1 | . . . 1 . . . Damage (major) 2 | . . . 2 . . . Siege Activations . | . . . . . . . Robots Corrupted . | . . . . . . . Combat Hostiles . | . . . . . . . Parts Fried 1 | . . . . . . 1 Impact Corruptions . | . . . . . . . Robots Melted . | . . . . . . . Combat Hostiles . | . . . . . . . Parts Melted 10 | 1 . . 7 2 . . Heat Transferred 4733 | 125 803 25 2668 298 481 333 Parts Sabotaged . | . . . . . . . Parts Stolen . | . . . . . . . Parts Stripped . | . . . . . . . Power Chain Reactions 2 | . . . 1 1 . . Alert | -11 -10 -10 -8 -7 -6 -5 ------- Run | Yrd Mat Sub Mat Fac Fac Fac Peak Influence 312 | 15 147 . 312 174 150 123 Initial 114 | . 9 . . 114 16 . Average 66 | 6 35 . 142 52 40 27 Maximum Alert Level 1 | . . . 1 . . . Low Security (%) 88 | 100 100 . 58 100 100 100 Level 1 11 | . . . 41 . . . Level 2 . | . . . . . . . Level 3 . | . . . . . . . Level 4 . | . . . . . . . Level 5 . | . . . . . . . High Security . | . . . . . . . Max Security . | . . . . . . . Squads Dispatched 19 | . 1 . 5 2 2 9 Investigation 6 | . . . 3 1 . 2 Extermination 5 | . . . . 1 2 2 Reinforcement 7 | . 1 . 2 . . 4 Assault 1 | . . . . . . 1 Garrison . | . . . . . . . Intercept . | . . . . . . . Searches Triggered . | . . . . . . . Construction Impeded 1 | . . . . . . 1 Haulers Reinforced . | . . . . . . . Active Scanning Responses . | . . . . . . . Cargo Convoy Interrupts 1 | . . . . . . 1 Stealth | -11 -10 -10 -8 -7 -6 -5 --------- Run | Yrd Mat Sub Mat Fac Fac Fac Distress Signals 5 | . 1 . 3 . . 1 Communications Jammed . | . . . . . . . Distress Signals . | . . . . . . . Times Spotted 74 | . 14 10 31 3 5 11 Peak Tracking Total 7 | . 5 7 6 2 1 6 Tactical Retreats 6 | . . . 5 . . 1 Traps | -11 -10 -10 -8 -7 -6 -5 ------- Run | Yrd Mat Sub Mat Fac Fac Fac Traps Triggered 6 | . . . 2 1 . 3 Indirectly . | . . . . . . . Trap Hack Attempts . | . . . . . . . Triggered . | . . . . . . . Disarmed . | . . . . . . . Reprogrammed . | . . . . . . . Reused . | . . . . . . . Traps Extracted . | . . . . . . . Installed . | . . . . . . . Triggered 2 | . . . . . . 2 Machines | -11 -10 -10 -8 -7 -6 -5 ---------- Run | Yrd Mat Sub Mat Fac Fac Fac Machines Disabled 7 | . . . 2 1 1 3 Max in Single Turn 1 | . . . 1 1 1 1 Garrison Access 1 | . . . . . . 1 Machines Repaired . | . . . . . . . Machines Dismantled . | . . . . . . . Machines Sabotaged . | . . . . . . . Overloaded Fab Kills . | . . . . . . . Hacking | -11 -10 -10 -8 -7 -6 -5 --------- Run | Yrd Mat Sub Mat Fac Fac Fac Machines Accessed 28 | . 6 . 5 7 6 4 Terminals 16 | . 5 . 3 1 5 2 Fabricators 2 | . . . . 1 . 1 Repair Stations 4 | . 1 . 1 1 . 1 Recycling Units 3 | . . . . 3 . . Scanalyzers 3 | . . . 1 1 1 . Garrison Access . | . . . . . . . Total Hacks 80 | . 24 . 16 17 13 10 Successful 46 | . 16 . 12 10 4 4 Failed 34 | . 8 . 4 7 9 6 Catastrophic 3 | . . . . 1 2 . Database Lockouts . | . . . . . . . Manual . | . . . . . . . Terminals 42 | . 13 . 9 3 11 6 Fabricators 4 | . . . . 2 . 2 Repair Stations 22 | . 11 . 4 5 . 2 Recycling Units 5 | . . . . 5 . . Scanalyzers 7 | . . . 3 2 2 . Garrison Access . | . . . . . . . Terminal Hacks 19 | . 8 . 5 1 4 1 Record 4 | . . . . . 3 1 Prototype ID Bank 1 | . 1 . . . . . Open Door 1 | . . . . . 1 . Branch Access Points 1 | . . . . 1 . . Emergency Access Points 3 | . 2 . 1 . . . Alert Level 2 | . . . 2 . . . Unreport Threat 1 | . . . 1 . . . Locate Traps 1 | . 1 . . . . . Dispatch Records 1 | . 1 . . . . . Maintenance Status 1 | . 1 . . . . . Patrol Status 1 | . 1 . . . . . Zone Layout 2 | . 1 . 1 . . . Fabricator Hacks 4 | . . . . 2 . 2 Load Schematic 2 | . . . . 1 . 1 Build 2 | . . . . 1 . 1 Repair Station Hacks 15 | . 8 . 4 2 . 1 Scan Component 8 | . 4 . 2 1 . 1 Repair 7 | . 4 . 2 1 . . Recycling Unit Hacks 3 | . . . . 3 . . Report Inventory 3 | . . . . 3 . . Scanalyzer 5 | . . . 3 2 . . Insert Component 3 | . . . 2 1 . . Analyze 2 | . . . 1 1 . . Garrison Access Hacks . | . . . . . . . Unauthorized Hacks . | . . . . . . . Terminals . | . . . . . . . Fabricators . | . . . . . . . Repair Stations . | . . . . . . . Recycling Units . | . . . . . . . Scanalyzers . | . . . . . . . Garrison Access . | . . . . . . . Data Cores Recovered 1 | . . . . . 1 . Used . | . . . . . . . Hacking Detections 25 | . 4 . 4 7 6 4 Full Trace Events 7 | . 1 . 3 1 . 2 Feedback Events . | . . . . . . . Feedback Blocked . | . . . . . . . Robot Schematics Acquired . | . . . . . . . Robots Built . | . . . . . . . Authchips . | . . . . . . . Time . | . . . . . . . Total Robot Build Rating . | . . . . . . . Part Schematics Acquired 2 | . . . 1 1 . . Parts Built 4 | . . . . 2 . 2 Authchips . | . . . . . . . Time 98 | . . . . 62 . 36 Total Part Build Rating 10 | . . . . 4 . 6 Parts Repaired 7 | . 4 . 2 1 . . Time 248 | . 116 . 88 44 . . Parts Recycled . | . . . . . . . Recycled Matter . | . . . . . . . Retrieved Matter . | . . . . . . . Retrieved Components . | . . . . . . . Parts Scanalyzed 2 | . . . 1 1 . . Part Schematics Acquired 2 | . . . 1 1 . . Parts Damaged . | . . . . . . . Bothacking | -11 -10 -10 -8 -7 -6 -5 ------------ Run | Yrd Mat Sub Mat Fac Fac Fac Used RIF Installer . | . . . . . . . Robots Hacked . | . . . . . . . Non-combat . | . . . . . . . Combat . | . . . . . . . Robot Hacks Applied . | . . . . . . . Relay Couplers Released 2 | . . . . . . 2 Machine Destruction 2 | . . . . . . 2 Fabnet Peak Effective % . | . . . . . . . Robots Rewired . | . . . . . . . Allies Hacked . | . . . . . . . Hacks Repelled . | . . . . . . . Allies | -11 -10 -10 -8 -7 -6 -5 -------- Run | Yrd Mat Sub Mat Fac Fac Fac Total Allies . | . . . . . . . Largest Group . | . . . . . . . Highest-Rated Group . | . . . . . . . Highest-Rated Ally . | . . . . . . . Total Orders . | . . . . . . . Ally Attacks . | . . . . . . . Total Damage . | . . . . . . . Kills . | . . . . . . . Allies Corrupted . | . . . . . . . Allies Melted . | . . . . . . . Intel | -11 -10 -10 -8 -7 -6 -5 ------- Run | Yrd Mat Sub Mat Fac Fac Fac Robot Analysis Total . | . . . . . . . Derelict Logs Recovered 1 | . . 1 . . . . Drone Launches . | . . . . . . . Drone Recoveries . | . . . . . . . Exploration | -11 -10 -10 -8 -7 -6 -5 ------------- Run | Yrd Mat Sub Mat Fac Fac Fac Turns Passed 8495 | 111 1037 380 2253 1044 1746 1924 Spaces Moved 4426 | 81 566 278 1108 621 991 781 Core 11 | 7 . . . . . 4 Treads . | . . . . . . . Legs . | . . . . . . . Wheels 4372 | 74 566 278 1108 578 991 777 Hover 43 | . . . . 43 . . Flight . | . . . . . . . Fastest Speed 50 | 50 90 115 107 103 103 100 Average Speed 115 | 83 106 119 125 128 108 109 Slowest Speed 1250 | 90 115 140 155 356 125 1250 Overloaded Moves 43 | . . . . 43 . . Propulsion Burnouts . | . . . . . . . Robots Hopped . | . . . . . . . Cave-ins Triggered . | . . . . . . . Exploration Rate (%) 23 | 5 59 19 40 12 18 13 Regions Visited 6 Branch Regions 1 Pre-discovered Areas . | . . . . . . . Known Exits Taken 3 | . . . 1 1 1 . Unknown Exits Taken 3 | 1 1 1 . . . . Scrap Searched . | . . . . . . . Spaces Dug 2 | . . . . . 1 1 Terrain Destroyed 53 | . . . 30 8 4 11 Melee . | . . . . . . . Projectile 36 | . . . 21 . 4 11 AOE 17 | . . . 9 8 . . Terrain Rammed . | . . . . . . . Walls Destroyed . | . . . . . . . Machines Disabled . | . . . . . . . Actions | -11 -10 -10 -8 -7 -6 -5 --------- Run | Yrd Mat Sub Mat Fac Fac Fac Total 7473 | 112 944 321 1805 851 1624 1816 Wait 2598 | . 323 12 549 185 567 962 Move 4420 | 80 565 277 1107 620 990 781 Hop . | . . . . . . . Pick Up 101 | 16 18 5 27 12 15 8 Fast Attach 9 | . 3 2 . 2 2 . Attach 37 | 7 . 4 10 4 6 6 Detach 2 | . . . . . 1 1 Swap 73 | 1 4 6 33 11 10 8 Drop 65 | 2 4 11 14 11 14 9 Fire 142 | 6 27 4 63 6 19 17 Melee . | . . . . . . . Ram 2 | . . . 2 . . . Kick . | . . . . . . . Crush . | . . . . . . . Escape Stasis 24 | . . . . . . 24 Rewire . | . . . . . . . Trap . | . . . . . . . Miscellaneous . | . . . . . . . Route ------- -11/Scrapyard -10/Materials (discovered 2 exits: [*Mat] / [*Sub]) -10/Subcaves -8/Materials (discovered 2 exits: *Fac x2) -7/Factory (discovered 3 exits: *Fac / Low x2) -6/Factory (discovered 2 exits: *Fac / *Ext) -5/Factory (discovered 1 exit: [*Fac]) History --------- Turn | Location | Event 8 | -11/Scrapyard | Discovered new exit (range 16) 112 | -11/Scrapyard | Entered Materials 254 | -10/Materials | Discovered new exit (range 4) 328 | -10/Materials | Build established: Mutant 865 | -10/Materials | Repaired Com. Wheel 904 | -10/Materials | Repaired Imp. Heat Sink 931 | -10/Materials | Repaired Com. Wheel 959 | -10/Materials | Repaired Lgt. Ion Engine 1027 | -10/Materials | Discovered new exit (range 5) 1149 | -10/Materials | Entered Subcaves 1162 | -10/Subcaves | Learned location of 1 exit from Materials 1316 | -10/Subcaves | A swath of the cavern ceiling suddenly collapsed 1410 | -10/Subcaves | Ambushed by swarm of Subdwellers 1426 | -10/Subcaves | Core integrity fell below 50% 1453 | -10/Subcaves | Build established: Scavenger-Mutant 1463 | -10/Subcaves | Lost 3 allies 1515 | -10/Subcaves | Discovered new exit (range 14) 1529 | -10/Subcaves | Entered Materials 1529 | -8/Materials | Evolved 4 slots: Utility x3, Weapon x1 1530 | -8/Materials | Identified exit to Factory 2192 | -8/Materials | Repaired Broken Sub. Monowheel 2239 | -8/Materials | Repaired Broken Sub. Monowheel? 2347 | -8/Materials | Build established: Scavenger-Skirmisher 3371 | -8/Materials | Discovered exit to Factory (range 5) 3782 | -8/Materials | Entered Factory 3782 | -7/Factory | Evolved 2 slots: Propulsion x1, Utility x1 3929 | -7/Factory | Fabricated Sub. Monowheel? 4431 | -7/Factory | Identified exit to Lower Caves 4747 | -7/Factory | Repaired Broken Sub. Monowheel 4821 | -7/Factory | Discovered new exit (range 5) 4825 | -7/Factory | Identified exit to Factory 4826 | -7/Factory | Entered another Factory area 4826 | -6/Factory | Evolved 2 slots: Utility x2 6403 | -6/Factory | Discovered new exit (range 9) 6422 | -6/Factory | Identified exit to Factory 6544 | -6/Factory | Discovered new exit (range 6) 6547 | -6/Factory | Identified exit to Extension 6572 | -6/Factory | Entered another Factory area 6572 | -5/Factory | Evolved 2 slots: Power x1, Propulsion x1 7712 | -5/Factory | Cargo convoy interrupted 7969 | -5/Factory | Fabricated Imp. Terrain Scanner? 8423 | -5/Factory | Discovered new exit (range 13) 8485 | -5/Factory | Core integrity fell below 50% 8494 | -5/Factory | Core integrity fell below 20% 8496 | -5/Factory | Destroyed by X-77 Beamer with Gatling Laser Last Messages --------------- Imp. Medium Armor Plating destroyed. Slug penetrates Wall. Mic. Fission Core destroyed. Slug penetrates Wall. Knocked back. Slug penetrates Wall. The unstable cave ceiling collapses. Adv. Signal Interpreter destroyed. Critical hit (Blast). Penetrated by Slug. Slug penetrates Wall. ALERT: Rogue bot located, Programmers report to Factory Zone 4Z. Slug penetrates Wall. Wall collapses. Imp. Cryofiber Web destroyed. Penetrated by Slug. U-05 Engineer builds a Wall. Penetrated by Slug. [Achievement: Just Browsing] Map ----- +----------------------------------------------------+ | + ] """ ## ????"?? ?????????????????????? | | ###### ## ?? ? ? ? ??????????????????????? | | ###### " "" #####?? ? ???????????????????????? | | ###### "R"" / ?? ##?##????????????????????????? | | ###### """ #?### #???#???#????????????????????? | | ###### #?#?# ##?#??#??????????????????????? | | ###?######/####?#?#???######?????????????????????? | | ######## ##?###?## #?????????????????????? | | ######## ###### ##! #?????????????????????? | | ######## < #?????????????????????? | | ?"""" ?#!% ### ##### #?????????????????????? | | ?"""? ?# #?# ##?## ??????????????????????? | | ""? ?? ## ##?# ###??# #??????????????????????? | | ? ?? ??# #??# #??#?# H #??????#????#??????????? | | ? ??????# #?## #?#??# #????? #### ??????????? | | ????????# ##?# #??#?# #???? ???????????? | | ? ??????# T### ###### #??? ?????????????? | | ????????# ## # ## #### ?????????????? | | #+####### ## ## [ """ ""???????????? | | ## # """ """??????????? | | %hh # "" """ """ "????????? | | uu ##! # """ ????????? | | ##### ###! ; F" """ ""???????????? | | ??# x% """ """ ""???????????? | | " ; "" """ """ "????????? | | ? " #% @ ??? | | ? " #%% ??? | | ? ##;######+######## ??? | | ?? ###; ???????????????????????? | | ??" # ###?## ???????????????????????? | | ??? ###??????! ??????????????????????? | | ??? ????????? ??????????????????????? | | ??#? ?????????? ?????????????????????? | | ???? " ?????????? ?????????????????????? | | ???? "???????????= ????????????????????? | | ????? ???????????? ????????????????????? | | ????? ! ???????????? ???????????????????? | | ?????? ?????????????? ???????????????????? | | ???????#####?????????????? ??????????????????? | | ??????????????????????????#####??????????????????? | | ?????????????????????????????????????????????????? | | ?????????????????????????????????????????????????? | | ?????????????????????????????????????????????????? | | ?????????????????????????????????????????????????? | | ?????????????????????????????????????????????????? | | ?????????????????????????????????????????????????? | | ?????????????????????????????????????????????????? | | ?????????????????????????????????????????????????? | | ?????????????????????????????????????????????????? | | ?????????????????????????????????????????????????? | +----------------------------------------------------+ Best States ------------- Heat Dissipation 61 Coolant Potential 65 Energy Generation 25 Energy Capacity 315 Matter Stores 300 Matter Capacity 300 Sight Range 22 Robot Scan Range 16 Terrain Scan Range 16 Terrain Scan Density 85 Base Temperature (-) 150 Armor Coverage 800 Propulsion Shielding 33 Evasion (%) 44 Item Schematics ----------------- Sub. Monowheel | -8/Materials | Scanalyzed Imp. Terrain Scanner | -7/Factory | Scanalyzed Robot Schematics ------------------ None Fabricated ------------ Sub. Monowheel | x2 | -7/Factory Imp. Terrain Scanner | x2 | -5/Factory Alien Tech Used ----------------- None Achievements -------------- Hey, That's Mine! Just Browsing Challenges ------------ None Game ------ Seed GunUtilityPendant Manual? 0 Play Time 02:08:43 Cumulative 21.9 hours Start 2024.05.02 @ 19:21:27 End 2024.05.02 @ 21:48:05 Sessions 1 Manual Loads 0 Difficulty Rogue Special Mode None Game No. 27 Rogue 27 Adventurer 0 Explorer 0 Win Type - Total 0 Types 0/0/0/0/0/0/0/0/0 Lore% 21 Gallery% 25 Achievement% 18 Wizard Run 0 Options --------- Layout 1 ASCII 0 Keyboard 0 Movement Mouse Keybinds 0 Fullscreen 1 Font 24/Smallcaps Map View 50x35 Zoom Use 0% Tactical HUD 0 Map Filters NONE Filters NONE Steam 1 RUN: b29fc869-405a-4422-9e9e-053cafc14ee4